Cogmind - Beta 11 X7 @@@ ROGUE MODE // 2021.10.13 @ 20:40:25 Player: IceBox Result: Destroyed by D-53 Grenadier with Mini Grenade Launcher Performance ------------- Evolutions (0) 0 Regions Visited (4) 800 Robots Destroyed (37) 185 Value Destroyed (603) 603 Prototype IDs (25) 500 Alien Tech Used (0) 0 Bonus (318) 318 TOTAL SCORE: 2406 Bonus ------- High Alert Combat Kills 18 Aligned with FarCom 300 Cogmind --------- Core Integrity 0/250 Matter 289/300 Energy 63/100 System Corruption 0% Temperature Cool (0) Movement Rolling (110) Ox2 Location -9/Mines Parts ------- > --- POWER (1) -------- (None) > --- PROPULSION (2) --- Wheel > --- UTILITY (2) ------ Large Storage Unit > --- WEAPON (2) ------- Light Assault Rifle > --- INVENTORY (15) --- Light Ion Engine Light Ion Engine Light Treads Light Treads Light Treads Wheel Large Battery (200) Cloak of Protection Utility Shielding Skeleton Box PSU Rigger Light Assault Rifle Light Assault Rifle Peak State ------------ > --- POWER ------------ Ion Engine > --- PROPULSION ------- Light Treads Wheel > --- UTILITY ---------- Large Storage Unit Cloak of Protection > --- WEAPON ----------- EM Pulse Gun EM Pulse Gun > --- INVENTORY -------- Light Ion Engine Light Ion Engine Light Treads Light Treads Light Treads Wheel Wheel Utility Shielding Skeleton Box PSU Rigger Light Assault Rifle Light Assault Rifle Light Assault Rifle Light Assault Rifle [Rating: 16] Favorites ----------- Power Ion Engine Engine Ion Engine Propulsion Wheel Treads Light Treads Leg Aluminum Leg Wheel Wheel Utility Large Storage Unit Device Heat Sink Storage Large Storage Unit Protection Core Shielding Weapon EM Pulse Gun Energy Gun EM Pulse Gun Ballistic Gun Light Assault Rifle Build | -11 -10 -10 -10 -9 ------- Run | Scr Mat Min Exi Min Slots Evolved . | . . . . . Power . | . . . . . Propulsion . | . . . . . Utility . | . . . . . Weapon . | . . . . . Parts Attached 23 | 3 11 . 4 5 Power 2 | . 2 . . . Engine 2 | . 2 . . . Core . | . . . . . Reactor . | . . . . . Propulsion 5 | 2 2 . . 1 Treads 1 | . 1 . . . Leg . | . . . . . Wheel 4 | 2 1 . . 1 Hover . | . . . . . Flight . | . . . . . Utility 9 | . 3 . 4 2 Device 5 | . 1 . 3 1 Storage 1 | . 1 . . . Processor . | . . . . . Hackware . | . . . . . Protection 3 | . 1 . 1 1 Artifact . | . . . . . Weapon 7 | 1 4 . . 2 Energy Gun 6 | 1 4 . . 1 Energy Cannon . | . . . . . Ballistic Gun 1 | . . . . 1 Ballistic Cannon . | . . . . . Launcher . | . . . . . Special Weapon . | . . . . . Impact Weapon . | . . . . . Slashing Weapon . | . . . . . Piercing Weapon . | . . . . . Special Melee Weapon . | . . . . . Unidentified Prototypes . | . . . . . Parts Lost 10 | . 3 . . 7 Power 2 | . 1 . . 1 Propulsion 2 | . . . . 2 Utility 1 | . . . . 1 Weapon 5 | . 2 . . 3 Highest Loss Streak 6 | . 2 . . 6 Average Slot Usage (%) 98 | . 97 100 99 98 Engine 13 | . 13 14 14 14 Treads 10 | . 7 14 14 14 Wheel 17 | . 20 14 14 13 Device 6 | . 9 . . 5 Storage 14 | . 14 14 14 14 Protection 6 | . 2 14 12 8 Energy Gun 27 | . 27 28 28 27 Naked Turns . | . . . . . Heaviest Build 37 | 13 30 30 37 31 Greatest Support 26 | 26 26 10 10 10 Greatest Overweight (x) 3 | . 2 2 3 3 Average Overweight (x) 1 | . . 2 2 2 Largest Inventory Capacity 15 | 8 15 15 15 15 Average Capacity 12 | 8 9 15 15 15 Most Carried 15 | 6 14 15 15 15 Average Carried 11 | 6 8 14 14 14 Final Capacity 15 | 8 15 15 15 15 Final Carried 15 | 6 14 15 15 13 Class Distribution -------------------- 100% | Mutant Dominant Class ---------------- Mutant | -10/Materials Mutant | -10/Mines Mutant | -10/Exiles Mutant | -9/Mines Resources | -11 -10 -10 -10 -9 ----------- Run | Scr Mat Min Exi Min Matter Collected 390 | 230 100 . . 60 Remotely . | . . . . . Salvage Created 1035 | . 914 50 . 71 Parts 86 | . 74 7 . 5 Haulers Intercepted 2 | . 2 . . . Recyclers Shooed . | . . . . . Parts Field Recycled . | . . . . . Retrieved Matter . | . . . . . Parts Self-Destructed . | . . . . . Prevented . | . . . . . Kills | -11 -10 -10 -10 -9 ------- Run | Scr Mat Min Exi Min Combat Hostiles Destroyed 27 | . 20 3 . 4 Guns 24 | . 17 3 . 4 AOE 2 | . 2 . . . Classes Destroyed 8 | . 7 . . 1 Worker 4 | . 4 . . . Tunneler 1 | . 1 . . . Hauler 2 | . 2 . . . Operator 1 | . 1 . . . Watcher 3 | . 3 . . . Swarmer 15 | . 9 3 . 3 Grunt 11 | . 11 . . . Assembled 1 | . . . . 1 Best Kill Streak 11 | . 11 3 . 3 Combat Bots Only 8 | . 8 3 . 3 Max Kills in Single Turn 2 | . 2 1 . 1 Gunslinging 1 | . 1 . . . Exploded 1 | . 1 . . . Melee . | . . . . . Uniques/NPCs Destroyed . | . . . . . Combat | -11 -10 -10 -10 -9 -------- Run | Scr Mat Min Exi Min Damage Taken 1006 | . 471 117 . 418 Core 264 | . 99 30 . 135 Absorbed by Shields . | . . . . . Core Remaining (%) 100 | 100 . . . . Volleys Fired 63 | . 46 7 . 10 Largest 2 | . 2 2 . 2 Hottest 90 | . 90 80 . 80 Shots Fired 124 | . 92 14 . 18 Gun 124 | . 92 14 . 18 Cannon . | . . . . . Launcher . | . . . . . Special . | . . . . . Kinetic 1 | . . . . 1 Thermal 26 | . 26 . . . Explosive . | . . . . . Electromagnetic 97 | . 66 14 . 17 Robot Hit Streak 10 | . 10 1 . 5 Robot Miss Streak 5 | . 4 5 . 4 Penetration Max . | . . . . . Secondary Targets 5 | . 4 1 . . Max Gunslinging Chain 1 | . 1 1 . . Shots Hit Robots 70 | . 58 3 . 9 Core Hits 43 | . 35 3 . 5 Critical Kills . | . . . . . Critical Parts Destroyed . | . . . . . Critical Strikes . | . . . . . Melee Attacks . | . . . . . Impact . | . . . . . Slashing . | . . . . . Piercing . | . . . . . Sneak Attacks . | . . . . . Combat Hostiles . | . . . . . Follow-up Attacks . | . . . . . Damage Inflicted 1234 | . 1073 47 . 114 Guns 977 | . 816 47 . 114 Cannons . | . . . . . Explosions 257 | . 257 . . . Melee . | . . . . . Ramming . | . . . . . Kinetic . | . . . . . Thermal 416 | . 416 . . . Explosive . | . . . . . Electromagnetic 818 | . 657 47 . 114 Impact . | . . . . . Slashing . | . . . . . Piercing . | . . . . . Highest Corruption . | . . . . . Average Corruption . | . . . . . Corruption Purged . | . . . . . Overload Shots . | . . . . . Overflow Damage . | . . . . . Projectiles . | . . . . . Explosions . | . . . . . Melee . | . . . . . Knockbacks . | . . . . . Impact . | . . . . . Kinetic . | . . . . . Secondary . | . . . . . Self-Inflicted Damage 87 | . 87 . . . Shots 3 | . 3 . . . Rammed . | . . . . . Targets Rammed . | . . . . . Kicked . | . . . . . Crushed . | . . . . . Highest Temperature 150 | . 150 126 . 54 Average Temperature 40 | . 37 63 . 26 Received Heat Transfer 84 | . 84 . . . Siege Activations . | . . . . . Robots Corrupted 1 | . 1 . . . Combat Hostiles 1 | . 1 . . . Parts Fried 2 | . 2 . . . Impact Corruptions . | . . . . . Robots Melted . | . . . . . Combat Hostiles . | . . . . . Parts Melted . | . . . . . Heat Transferred 846 | . 846 . . . Parts Sabotaged . | . . . . . Parts Stolen . | . . . . . Parts Stripped . | . . . . . Power Chain Reactions 3 | . 3 . . . Missiles Intercepted . | . . . . . Alert | -11 -10 -10 -10 -9 ------- Run | Scr Mat Min Exi Min Peak Influence 452 | . 452 133 . 65 Initial 63 | . . 63 . . Average 123 | . 153 125 . 59 Maximum Alert Level 2 | . 2 . . . Low Security (%) 80 | 100 69 100 . 100 Level 1 17 | . 27 . . . Level 2 1 | . 2 . . . Level 3 . | . . . . . Level 4 . | . . . . . Level 5 . | . . . . . High Security . | . . . . . Max Security . | . . . . . Squads Dispatched 4 | . 4 . . . Investigation 3 | . 3 . . . Extermination . | . . . . . Reinforcement 1 | . 1 . . . Assault . | . . . . . Garrison . | . . . . . Intercept . | . . . . . Construction Impeded . | . . . . . Haulers Reinforced . | . . . . . Active Scanning Responses . | . . . . . Cargo Convoy Interrupts . | . . . . . Stealth | -11 -10 -10 -10 -9 --------- Run | Scr Mat Min Exi Min Distress Signals 2 | . 2 . . . Communications Jammed . | . . . . . Distress Signals . | . . . . . Times Spotted 38 | . 27 3 . 8 Peak Tracking Total 7 | . 7 3 . 3 Tactical Retreats 2 | . 1 . . 1 Traps | -11 -10 -10 -10 -9 ------- Run | Scr Mat Min Exi Min Traps Triggered 3 | . 3 . . . Indirectly . | . . . . . Trap Hack Attempts . | . . . . . Triggered . | . . . . . Disarmed . | . . . . . Reprogrammed . | . . . . . Reused . | . . . . . Traps Extracted . | . . . . . Installed . | . . . . . Triggered . | . . . . . Power Sources Rigged 1 | . . . . 1 Machines | -11 -10 -10 -10 -9 ---------- Run | Scr Mat Min Exi Min Machines Disabled . | . . . . . Max in Single Turn . | . . . . . Machines Sabotaged . | . . . . . Garrisons Compromised . | . . . . . Overloaded Fab Kills . | . . . . . Fab Network Shutdowns . | . . . . . Hacking | -11 -10 -10 -10 -9 --------- Run | Scr Mat Min Exi Min Machines Accessed 9 | . 6 . 2 1 Terminals 7 | . 6 . . 1 Fabricators . | . . . . . Repair Stations . | . . . . . Recycling Units . | . . . . . Scanalyzers . | . . . . . Garrison Access . | . . . . . Total Hacks 53 | . 27 . 24 2 Successful 41 | . 16 . 24 1 Failed 12 | . 11 . . 1 Catastrophic 2 | . 2 . . . Database Lockouts . | . . . . . Manual 21 | . 19 . 1 1 Terminals 29 | . 27 . . 2 Fabricators . | . . . . . Repair Stations . | . . . . . Recycling Units . | . . . . . Scanalyzers . | . . . . . Garrison Access . | . . . . . Terminal Hacks 35 | . 10 . 24 1 Record 24 | . 1 . 23 . Robot Analysis 2 | . 2 . . . Prototype ID Bank 1 | . 1 . . . Alert Level 1 | . 1 . . . Unreport Threat 2 | . 2 . . . Locate Traps 1 | . 1 . . . Hauler Manifests 1 | . 1 . . . Zone Layout 2 | . 1 . . 1 EX-Prototype ID Bank 1 | . . . 1 . Fabricator Hacks . | . . . . . Repair Station Hacks . | . . . . . Recycling Unit Hacks . | . . . . . Scanalyzer . | . . . . . Garrison Access Hacks . | . . . . . Unauthorized Hacks 6 | . 6 . . . Terminals 6 | . 6 . . . Track 3 | . 3 . . . Botnet 1 | . 1 . . . Disrupt 1 | . 1 . . . Operators 1 | . 1 . . . Fabricators . | . . . . . Repair Stations . | . . . . . Recycling Units . | . . . . . Scanalyzers . | . . . . . Garrison Access . | . . . . . Data Cores Recovered . | . . . . . Used . | . . . . . Hacking Detections 7 | . 6 . . 1 Full Trace Events . | . . . . . Feedback Events . | . . . . . Feedback Blocked . | . . . . . Robot Schematics Acquired . | . . . . . Robots Built . | . . . . . Matter . | . . . . . Time . | . . . . . Total Robot Build Rating . | . . . . . Part Schematics Acquired . | . . . . . Parts Built . | . . . . . Matter . | . . . . . Time . | . . . . . Total Part Build Rating . | . . . . . Parts Repaired . | . . . . . Time . | . . . . . Parts Recycled . | . . . . . Recycled Matter . | . . . . . Retrieved Matter . | . . . . . Retrieved Components . | . . . . . Parts Scanalyzed . | . . . . . Part Schematics Acquired . | . . . . . Parts Damaged . | . . . . . Bothacking | -11 -10 -10 -10 -9 ------------ Run | Scr Mat Min Exi Min Used RIF Installer . | . . . . . Robots Hacked . | . . . . . Non-combat . | . . . . . Combat . | . . . . . Robot Hacks Applied . | . . . . . Relay Couplers Released . | . . . . . Robots Rewired . | . . . . . Allies Hacked . | . . . . . Hacks Repelled . | . . . . . Allies | -11 -10 -10 -10 -9 -------- Run | Scr Mat Min Exi Min Total Allies . | . . . . . Largest Group . | . . . . . Highest-Rated Group . | . . . . . Highest-Rated Ally . | . . . . . Total Orders . | . . . . . Ally Attacks . | . . . . . Total Damage . | . . . . . Kills . | . . . . . Allies Corrupted . | . . . . . Allies Melted . | . . . . . Intel | -11 -10 -10 -10 -9 ------- Run | Scr Mat Min Exi Min Robot Analysis Total 2 | . 2 . . . Derelict Logs Recovered 1 | . . 1 . . Drone Launches . | . . . . . Drone Recoveries . | . . . . . Exploration | -11 -10 -10 -10 -9 ------------- Run | Scr Mat Min Exi Min Turns Passed 1797 | 14 905 108 354 416 Spaces Moved 1336 | 11 697 79 309 240 Core . | . . . . . Treads 3 | . 3 . . . Legs . | . . . . . Wheels 1333 | 11 694 79 309 240 Hover . | . . . . . Flight . | . . . . . Fastest Speed 80 | 90 80 110 110 110 Average Speed 100 | 90 91 110 110 112 Slowest Speed 160 | 90 160 110 125 125 Overloaded Moves . | . . . . . Propulsion Burnouts . | . . . . . Robots Hopped . | . . . . . Cave-ins Triggered . | . . . . . Exploration Rate (%) 42 | 2 86 17 70 36 Regions Visited 4 Branch Regions 3 Pre-discovered Areas 2 | . . 1 1 . Known Exits Taken . | . . . . . Unknown Exits Taken 4 | 1 1 1 1 . Scrap Searched 2 | . . . . 2 Spaces Dug . | . . . . . Terrain Destroyed 15 | . 15 . . . Melee . | . . . . . Projectile . | . . . . . AOE 15 | . 15 . . . Terrain Rammed . | . . . . . Walls Destroyed . | . . . . . Machines Disabled . | . . . . . Actions | -11 -10 -10 -10 -9 --------- Run | Scr Mat Min Exi Min Total 1661 | 13 869 86 323 370 Wait 201 | . 92 . . 109 Move 1332 | 10 696 78 308 240 Hop . | . . . . . Pick Up 24 | . 16 1 4 3 Fast Attach 7 | . 4 . 3 . Attach 6 | . 3 . . 3 Detach . | . . . . . Swap 10 | 3 4 . 1 2 Drop 17 | . 8 . 7 2 Fire 63 | . 46 7 . 10 Melee . | . . . . . Ram . | . . . . . Kick . | . . . . . Crush . | . . . . . Escape Stasis . | . . . . . Rewire . | . . . . . Trap 1 | . . . . 1 Miscellaneous . | . . . . . Route ------- -11/Scrapyard -10/Materials (discovered 3 exits: [*Mat x2] / [*Min]) -10/Mines -10/Exiles -9/Mines History --------- Turn | Location | Event 4 | -11/Scrapyard | Discovered new exit (range 3) 15 | -11/Scrapyard | Entered Materials 302 | -10/Materials | Build established: Mutant 481 | -10/Materials | Discovered new exit (range 11) 696 | -10/Materials | Discovered new exit (range 5) 825 | -10/Materials | Destroyed 8 combat bots 899 | -10/Materials | Discovered new exit (range 11) 920 | -10/Materials | Entered Mines 938 | -10/Mines | Core integrity fell below 50% 1013 | -10/Mines | Learned location of Zion (-7) 1024 | -10/Mines | Deemed a non-threat by the Exiles lab entrance 1024 | -10/Mines | Discovered new exit (range 5) 1028 | -10/Mines | Entered Exiles 1056 | -10/Exiles | Met 8R-AWN 1075 | -10/Exiles | Met EX-HEX 1136 | -10/Exiles | Met EX-DEC 1178 | -10/Exiles | Met EX-BIN 1193 | -10/Exiles | Aligned with FarCom system 1195 | -10/Exiles | Given EX-Vault access code 1220 | -10/Exiles | Opened EX-Vault 1230 | -10/Exiles | Found PSU Rigger 1236 | -10/Exiles | Found Skeleton Box 1241 | -10/Exiles | Found Cloak of Protection 1277 | -10/Exiles | Warned to stay clear of 0b10 Research branches 1372 | -10/Exiles | Discovered new exit (range 11) 1382 | -10/Exiles | Stole three prototypes: Cloak of Protection, Skeleton Box, PSU Rigger 1382 | -10/Exiles | Entered Mines 1383 | -9/Mines | Assembled infested the area 1427 | -9/Mines | Met a Derelict bent on vengeance 1795 | -9/Mines | Core integrity fell below 20% 1798 | -9/Mines | Destroyed by D-53 Grenadier with Mini Grenade Launcher Last Messages --------------- 01592_ Found Imp. Aluminum Leg. 01592_ Found Imp. Light Cannon. 01592_ Found 27 Matter. 01592_ Found 18 Matter. 01602_ Connecting with Terminal... 01602_ Current location identified: Mines >>Layout(Zone) Retrieving Zone 4S layout... Downloaded map data. 01648_ Dropped Lgt. Ion Engine. 01649_ Rigged Lgt. Ion Engine with PSU Rigger. 01655_ Acquired 15 matter. 01657_ Dropped Lgt. Ion Engine. 01660_ Acquired Lgt. Ion Engine. 01671_ Acquired Rigged Lgt. Ion Engine. 01789_ EM Pulse Gun destroyed. 01792_ Ion Engine destroyed. 01792_ Lgt. Treads destroyed. 01796_ EM Shotgun destroyed. 01798_ Core Shielding destroyed. Map ----- +----------------------------------------------------+ | ?????????????????????????????????????????????????? | | ?????????????????????????????????????????????????? | | ?????????????????????????????????????????????????? | | ?????????????????????????????????????????????????? | | ?????????????????????????????????????????????????? | | ???????????#############?????????????????????????? | | ???????????? ##????????????????????????? | | ??????????????? ##??????# ########???????? | | ??????????????????# #??????# #???????? | | ??????????????????# #????# ###### #???????? | | ?????????????????## #?????????????# #???????? | | ?????????????????# % #??????#??????# #???????? | | ?????????????????#[* % k # ???? #?????## #???????? | | ?????????????????#%= [ ## #### #??#### ##??????? | | ?????????????????## #?## ##?????? | | ??????????????????## * # ####### | | ???????????????????## ## # % ## | | ????????????????????## = ## ! ## | | ?????????????????????# % #???## | | ?????????????????????# ##????## | | ????????????????????### ###??????## | | ????????????????????# ##???????## ### | | ????????????????????# ################?## | | ????????????????????# # ##???????## | | ???????????????????## ##???####% | | ???????????????????# @ ##### | | ???????????????????# d | | ???????????????????## ### | | ????????????????????## ######?## ## | | ?????????????????????## ###??????## ##### | | ??????????????????????## ###?????## ##???? | | ???????????????????????## =!#?????# ##????? | | ????????????????????????# %#?????# ##?????? | | ????????????????????????####!#?????# ##???#### | | ???????????????????????????# #?????# ##???## | | ???????????????????????????# #?????## ##???## | | ???????????????????????????# #??????####???## | | ???????????????????????????# #????????????## | | ???????????????????????????# #????????????# | | ???????????????????????????#%#??###???????# | | ???????????????????????????#%####T#####???## | | ???????????????????????????#]= #????## | | ???????????????????????????# #????## ## | | ?????????????????????????####### """#????# #### | | ????????????????????????####???# """#???# #??? | | ??????????????????####? ####???# """#???# #??? | | ?????????????????? ###????# #???## ##??? | | ??????????????????### ###?????# """#????###???? | | ??????????????????????###??????# """#??????????? | | ???????????????????????????????# """#??????????? | +----------------------------------------------------+ Best States ------------- Heat Dissipation 35 Energy Generation 10 Energy Capacity 250 Matter Stores 300 Matter Capacity 300 Sight Range 16 Terrain Scan Density 10 Cloak Strength 5 Core Shielding 20 Evasion (%) 44 Recoil Reduction 1 Item Schematics ----------------- None Robot Schematics ------------------ None Fabricated ------------ Nothing Alien Tech Used ----------------- None Achievements -------------- None Challenges ------------ None Game ------ Seed DispersionHoverCompressor Manual? 0 Play Time 00:23:38 Cumulative 77.7 hours Start 2021.10.13 @ 20:17:15 End 2021.10.13 @ 20:40:25 Sessions 1 Manual Loads 0 Difficulty Rogue Special Mode None Game No. 53 Rogue 52 Adventurer 1 Explorer 0 Win Type - Total 2 Types 2/0/0/0/0/0/0/0/0 Lore% 37 Gallery% 45 Achievement% 41 Wizard Run 0 Options --------- ASCII 0 Keyboard 1 Movement Vi Keybinds 0 Fullscreen 2 Font 18/TerminusBold Map View 76x50 Tactical HUD 1 Map Filters NONE Filters NONE Steam 1 RUN: 124de120-bd13-4944-a668-b9fc07fc9683